[Event "*** Titled Tuesday Blitz"]
[Site "Chess.com"]
[Date "2021.04.20"]
[Round "8"]
[White "2008king"]
[Black "Mbneu"]
[Result "1/2-1/2"]
[WhiteElo "2132"]
[BlackElo "2301"]
[TimeControl "180+1"]
[EndTime "11:29:20 PDT"]
[Termination "Game drawn by agreement"]

1. e4 {[%clk 0:03:00.9]} 1... c5 {[%clk 0:02:59.6]} 2. Nf3 {[%clk 0:03:00.5]}
2... Nf6 {[%clk 0:02:59.9]} 3. e5 {[%clk 0:02:59.6]} 3... Nd5 {[%clk 0:03:00]}
4. d4 {[%clk 0:02:57.8]} 4... cxd4 {[%clk 0:02:59.4]} 5. Nxd4 {[%clk 0:02:52.4]}
5... e6 {[%clk 0:02:58]} 6. c4 {[%clk 0:02:50.1]} 6... Nc7 {[%clk 0:02:57.5]} 7.
Nc3 {[%clk 0:02:48.2]} 7... Nc6 {[%clk 0:02:56.6]} 8. Nxc6 {[%clk 0:02:47.8]}
8... dxc6 {[%clk 0:02:55.4]} 9. Qxd8+ {[%clk 0:02:48.7]} 9... Kxd8 {[%clk
0:02:54.5]} 10. Bg5+ {[%clk 0:02:49.4]} 10... Be7 {[%clk 0:02:53.3]} 11. O-O-O+
{[%clk 0:02:49.1]} 11... Ke8 {[%clk 0:02:53.7]} 12. Bxe7 {[%clk 0:02:48.8]}
12... Kxe7 {[%clk 0:02:54.6]} 13. Ne4 {[%clk 0:02:49.2]} 13... h6 {[%clk
0:02:47.8]} 14. f4 {[%clk 0:02:48]} 14... Rd8 {[%clk 0:02:33.7]} 15. Rxd8 {[%clk
0:02:43.6]} 15... Kxd8 {[%clk 0:02:32.6]} 16. Be2 {[%clk 0:02:43.7]} 16... Na6
{[%clk 0:02:29.3]} 17. Rd1+ {[%clk 0:02:42.7]} 17... Ke7 {[%clk 0:02:28.1]} 18.
a3 {[%clk 0:02:36.9]} 18... c5 {[%clk 0:02:22.6]} 19. Nd6 {[%clk 0:02:27.4]}
19... Rb8 {[%clk 0:01:52.4]} 20. Bf3 {[%clk 0:02:23.9]} 20... Nc7 {[%clk
0:01:51]} 21. Ne4 {[%clk 0:01:57.3]} 21... b6 {[%clk 0:01:47.6]} 22. Nd6 {[%clk
0:01:30]} 22... Bd7 {[%clk 0:01:42.9]} 23. b3 {[%clk 0:01:18.4]} 23... Ne8
{[%clk 0:01:42]} 24. Kc2 {[%clk 0:01:10]} 24... Nxd6 {[%clk 0:01:35.7]} 25. Rxd6
{[%clk 0:01:10.9]} 25... Rd8 {[%clk 0:01:33.4]} 26. Kc3 {[%clk 0:01:07.4]} 26...
f6 {[%clk 0:01:30.3]} 27. b4 {[%clk 0:00:57]} 27... cxb4+ {[%clk 0:01:29.5]} 28.
axb4 {[%clk 0:00:56.9]} 28... g5 {[%clk 0:01:27.7]} 29. g3 {[%clk 0:00:56.7]}
29... fxe5 {[%clk 0:00:56.4]} 30. fxe5 {[%clk 0:00:55.2]} 30... Rf8 {[%clk
0:00:56.9]} 31. Bg4 {[%clk 0:00:47.9]} 31... Rf2 {[%clk 0:00:55.4]} 32. h3
{[%clk 0:00:45.4]} 32... Rg2 {[%clk 0:00:46.8]} 33. b5 {[%clk 0:00:45]} 33...
Rxg3+ {[%clk 0:00:45.9]} 34. Kb4 {[%clk 0:00:44.2]} 34... h5 {[%clk 0:00:45]}
35. Bxh5 {[%clk 0:00:44]} 35... Rxh3 {[%clk 0:00:45.2]} 36. Bg4 {[%clk
0:00:44.5]} 36... Rh4 {[%clk 0:00:45.2]} 37. Be2 {[%clk 0:00:43.8]} 37... g4
{[%clk 0:00:45.4]} 38. Rd4 {[%clk 0:00:42.7]} 38... Rh5 {[%clk 0:00:41.2]} 39.
Rxg4 {[%clk 0:00:37.1]} 39... Rxe5 {[%clk 0:00:41.2]} 40. Rg7+ {[%clk
0:00:37.5]} 40... Kd6 {[%clk 0:00:41]} 41. Bg4 {[%clk 0:00:37.5]} 41... Re4
{[%clk 0:00:40.8]} 42. Rg8 {[%clk 0:00:36.2]} 42... e5 {[%clk 0:00:33.1]} 43.
Bxd7 {[%clk 0:00:35.9]} 43... Kxd7 {[%clk 0:00:34]} 44. Rg7+ {[%clk 0:00:36.5]}
44... Kc8 {[%clk 0:00:32.8]} 45. Rxa7 {[%clk 0:00:37.4]} 45... Re1 {[%clk
0:00:31.9]} 46. Re7 {[%clk 0:00:36.6]} 46... e4 {[%clk 0:00:31.1]} 47. Kc3
{[%clk 0:00:36]} 47... e3 {[%clk 0:00:25.6]} 48. Re6 {[%clk 0:00:32.2]} 48...
Kb7 {[%clk 0:00:24.4]} 49. Kd3 {[%clk 0:00:29.8]} 49... Rd1+ {[%clk 0:00:23.5]}
50. Kc2 {[%clk 0:00:29.7]} 50... Rd4 {[%clk 0:00:22.1]} 51. Kc3 {[%clk
0:00:29.4]} 51... Rd1 {[%clk 0:00:19.2]} 52. Rxe3 {[%clk 0:00:29.4]} 52... Rc1+
{[%clk 0:00:19.5]} 53. Kd4 {[%clk 0:00:29.1]} 53... Rd1+ {[%clk 0:00:19.9]} 54.
Ke5 {[%clk 0:00:29.4]} 54... Rd7 {[%clk 0:00:19.6]} 55. Ke6 {[%clk 0:00:28.8]}
55... Rd8 {[%clk 0:00:18.8]} 56. Rc3 {[%clk 0:00:27.1]} 56... Kc7 {[%clk
0:00:18.2]} 57. Rc1 {[%clk 0:00:24.7]} 57... Rd4 {[%clk 0:00:16.9]} 58. Ke5
{[%clk 0:00:24.2]} 58... Rh4 {[%clk 0:00:16.7]} 59. Kd5 {[%clk 0:00:24.4]} 59...
Rg4 {[%clk 0:00:16.6]} 60. Rh1 {[%clk 0:00:22.7]} 60... Rg5+ {[%clk 0:00:16.2]}
61. Kd4 {[%clk 0:00:23.2]} 61... Rg4+ {[%clk 0:00:16.5]} 62. Kc3 {[%clk
0:00:23.8]} 62... Rg7 {[%clk 0:00:16]} 63. Kb4 {[%clk 0:00:24.1]} 63... Rf7
{[%clk 0:00:16.3]} 64. Rh6 {[%clk 0:00:24.5]} 64... Re7 {[%clk 0:00:16.5]} 65.
Rc6+ {[%clk 0:00:24.7]} 65... Kb7 {[%clk 0:00:17.1]} 66. Kc3 {[%clk 0:00:24.1]}
66... Rd7 {[%clk 0:00:16.9]} 67. Re6 {[%clk 0:00:23.1]} 67... Kc7 {[%clk
0:00:16.9]} 68. Re5 {[%clk 0:00:22.6]} 68... Kb7 {[%clk 0:00:17.2]} 69. Rd5
{[%clk 0:00:23]} 69... Rc7 {[%clk 0:00:16.9]} 70. Kd4 {[%clk 0:00:23.2]} 70...
Rg7 {[%clk 0:00:16.6]} 71. Re5 {[%clk 0:00:22.7]} 71... Rd7+ {[%clk 0:00:16.5]}
72. Ke4 {[%clk 0:00:22.9]} 72... Rc7 {[%clk 0:00:16.6]} 73. Kd5 {[%clk
0:00:22.6]} 73... Rd7+ {[%clk 0:00:16.6]} 74. Ke6 {[%clk 0:00:22.6]} 74... Rc7
{[%clk 0:00:17]} 75. Re4 {[%clk 0:00:21.3]} 75... Rc5 {[%clk 0:00:17.2]} 76. Kd6
{[%clk 0:00:20.7]} 76... Rh5 {[%clk 0:00:16.6]} 77. Rg4 {[%clk 0:00:20.5]} 77...
Rh6+ {[%clk 0:00:16.1]} 78. Ke5 {[%clk 0:00:20.5]} 78... Rh5+ {[%clk 0:00:16.2]}
79. Kf6 {[%clk 0:00:20.4]} 79... Rc5 {[%clk 0:00:15.3]} 80. Ke6 {[%clk
0:00:19.2]} 80... Rc7 {[%clk 0:00:14.7]} 81. Kd6 {[%clk 0:00:18.8]} 81... Rh7
{[%clk 0:00:14.7]} 82. Rf4 {[%clk 0:00:18.4]} 82... Rh6+ {[%clk 0:00:14.3]} 83.
Ke5 {[%clk 0:00:18.5]} 83... Rh5+ {[%clk 0:00:14.1]} 84. Rf5 {[%clk 0:00:18.9]}
84... Rh7 {[%clk 0:00:14.1]} 85. Kf6 {[%clk 0:00:18.6]} 85... Rc7 {[%clk
0:00:13.6]} 86. Rf4 {[%clk 0:00:18.5]} 86... Rc5 {[%clk 0:00:13.8]} 87. Kg6
{[%clk 0:00:18.1]} 87... Rc7 {[%clk 0:00:12.3]} 88. Kf5 {[%clk 0:00:17.4]} 88...
Rf7+ {[%clk 0:00:09]} 89. Ke5 {[%clk 0:00:17.3]} 89... Re7+ {[%clk 0:00:09.2]}
90. Kd6 {[%clk 0:00:17.2]} 90... Rc7 {[%clk 0:00:09.4]} 91. Kd5 {[%clk
0:00:17.3]} 91... Rc5+ {[%clk 0:00:09.4]} 92. Kd4 {[%clk 0:00:18]} 92... Rc7
{[%clk 0:00:09.5]} 93. Rf5 {[%clk 0:00:17]} 93... Rd7+ {[%clk 0:00:09.6]} 94.
Kc3 {[%clk 0:00:17.4]} 94... Re7 {[%clk 0:00:09.6]} 95. Kb4 {[%clk 0:00:17.7]}
95... Rc7 {[%clk 0:00:09.7]} 96. c5 {[%clk 0:00:17.1]} 96... bxc5+ {[%clk
0:00:09]} 97. Rxc5 {[%clk 0:00:18]} 97... Rd7 {[%clk 0:00:09]} 98. Rh5 {[%clk
0:00:18]} 98... Re7 {[%clk 0:00:09.1]} 99. Rh6 {[%clk 0:00:18.1]} 99... Rd7
{[%clk 0:00:09.4]} 100. Ka5 {[%clk 0:00:18.5]} 100... Re7 {[%clk 0:00:09.7]}
101. Rb6+ {[%clk 0:00:18.6]} 101... Ka7 {[%clk 0:00:09.4]} 102. Rd6 {[%clk
0:00:18.3]} 102... Rf7 {[%clk 0:00:08.9]} 103. Rd5 {[%clk 0:00:15.6]} 103... Kb7
{[%clk 0:00:09]} 104. b6 {[%clk 0:00:15.3]} 104... Re7 {[%clk 0:00:08.5]} 105.
Rh5 {[%clk 0:00:15.1]} 105... Rf7 {[%clk 0:00:08.6]} 106. Kb5 {[%clk 0:00:15.6]}
106... Re7 {[%clk 0:00:09]} 107. Rc5 {[%clk 0:00:15.5]} 107... Rf7 {[%clk
0:00:09.4]} 1/2-1/2

[Event "*** Titled Tuesday Blitz"]
[Site "Chess.com"]
[Date "2021.04.20"]
[Round "8"]
[White "NateSolon"]
[Black "fastestmindalive"]
[Result "1/2-1/2"]
[WhiteElo "2652"]
[BlackElo "2758"]
[TimeControl "180+1"]
[EndTime "11:31:26 PDT"]
[Termination "Game drawn by repetition"]

1. d4 {[%clk 0:03:00.9]} 1... Nf6 {[%clk 0:02:56.4]} 2. c4 {[%clk 0:03:00.9]}
2... e6 {[%clk 0:02:56]} 3. g3 {[%clk 0:03:00.9]} 3... Bb4+ {[%clk 0:02:33.7]}
4. Nd2 {[%clk 0:03:00.6]} 4... c5 {[%clk 0:02:31.9]} 5. a3 {[%clk 0:02:58.9]}
5... Bxd2+ {[%clk 0:02:31.3]} 6. Qxd2 {[%clk 0:02:59.8]} 6... cxd4 {[%clk
0:02:31.7]} 7. Nf3 {[%clk 0:02:59.7]} 7... Nc6 {[%clk 0:02:31.2]} 8. Nxd4 {[%clk
0:02:51]} 8... O-O {[%clk 0:02:29.6]} 9. Bg2 {[%clk 0:02:50]} 9... Qb6 {[%clk
0:02:28.8]} 10. Nxc6 {[%clk 0:02:40.5]} 10... bxc6 {[%clk 0:02:29.7]} 11. b4
{[%clk 0:02:33.1]} 11... d5 {[%clk 0:02:28.5]} 12. Bb2 {[%clk 0:02:26.1]} 12...
Ba6 {[%clk 0:02:26.6]} 13. cxd5 {[%clk 0:01:59.1]} 13... cxd5 {[%clk 0:02:27.5]}
14. O-O {[%clk 0:01:56.4]} 14... Rfc8 {[%clk 0:02:23]} 15. Rfc1 {[%clk
0:01:53.8]} 15... Ne8 {[%clk 0:01:55.4]} 16. e4 {[%clk 0:01:49.4]} 16... dxe4
{[%clk 0:01:52.3]} 17. Bxe4 {[%clk 0:01:50.3]} 17... Bb7 {[%clk 0:01:52.1]} 18.
Bxb7 {[%clk 0:01:42]} 18... Qxb7 {[%clk 0:01:53]} 19. h4 {[%clk 0:01:34.8]}
19... Rd8 {[%clk 0:01:47.1]} 20. Qf4 {[%clk 0:01:30.1]} 20... Rd5 {[%clk
0:01:41.2]} 21. Rd1 {[%clk 0:01:12]} 21... Rf5 {[%clk 0:01:37.8]} 22. Qd4 {[%clk
0:01:05.2]} 22... h5 {[%clk 0:01:23.2]} 23. Rac1 {[%clk 0:01:04.8]} 23... Nf6
{[%clk 0:01:19.1]} 24. a4 {[%clk 0:00:58]} 24... Kh7 {[%clk 0:01:03.1]} 25. b5
{[%clk 0:00:57]} 25... Rg8 {[%clk 0:01:01.6]} 26. Rc5 {[%clk 0:00:47.9]} 26...
Rxc5 {[%clk 0:00:47.8]} 27. Qxc5 {[%clk 0:00:48.8]} 27... Qf3 {[%clk 0:00:47.8]}
28. Qc2+ {[%clk 0:00:38]} 28... Kh8 {[%clk 0:00:39.9]} 29. Rd3 {[%clk
0:00:30.4]} 29... Qe4 {[%clk 0:00:35.7]} 30. Qd1 {[%clk 0:00:30.3]} 30... Qf5
{[%clk 0:00:25.3]} 31. Rd4 {[%clk 0:00:15.1]} 31... Nd5 {[%clk 0:00:24.6]} 32.
Rc4 {[%clk 0:00:12.9]} 32... Kh7 {[%clk 0:00:19.7]} 33. Qc2 {[%clk 0:00:12]}
33... Nb6 {[%clk 0:00:10.8]} 34. Qxf5+ {[%clk 0:00:11.1]} 34... exf5 {[%clk
0:00:11.7]} 35. Rf4 {[%clk 0:00:06.8]} 35... Kg6 {[%clk 0:00:07.9]} 36. a5
{[%clk 0:00:07.2]} 36... Nd5 {[%clk 0:00:06.8]} 37. Rd4 {[%clk 0:00:07.5]} 37...
Nc7 {[%clk 0:00:04.8]} 38. b6 {[%clk 0:00:04.8]} 38... axb6 {[%clk 0:00:05.7]}
39. axb6 {[%clk 0:00:05.7]} 39... Ne6 {[%clk 0:00:05.9]} 40. Rd6 {[%clk
0:00:03.3]} 40... Rb8 {[%clk 0:00:05.3]} 41. Rc6 {[%clk 0:00:03.2]} 41... Rb7
{[%clk 0:00:05.2]} 42. Be5 {[%clk 0:00:02.6]} 42... Kh7 {[%clk 0:00:04.6]} 43.
Bc7 {[%clk 0:00:02.1]} 43... Kg8 {[%clk 0:00:04.2]} 44. Kg2 {[%clk 0:00:02.5]}
44... Kf8 {[%clk 0:00:04.4]} 45. Kf3 {[%clk 0:00:02.7]} 45... Ke7 {[%clk
0:00:05]} 46. Ke3 {[%clk 0:00:03]} 46... Kd7 {[%clk 0:00:05.3]} 47. Rd6+ {[%clk
0:00:03.5]} 47... Ke7 {[%clk 0:00:05.3]} 48. Rc6 {[%clk 0:00:03.4]} 48... g6
{[%clk 0:00:03.8]} 49. f3 {[%clk 0:00:03.1]} 49... Kd7 {[%clk 0:00:03.8]} 50.
Rd6+ {[%clk 0:00:02.7]} 50... Kc8 {[%clk 0:00:04.5]} 51. Rc6 {[%clk 0:00:03.5]}
51... Nxc7 {[%clk 0:00:04.4]} 52. bxc7 {[%clk 0:00:03.7]} 52... Rxc7 {[%clk
0:00:05]} 53. Rd6 {[%clk 0:00:04.4]} 53... Rd7 {[%clk 0:00:03.3]} 54. Ra6 {[%clk
0:00:04.6]} 54... Kd8 {[%clk 0:00:03.5]} 55. Kf4 {[%clk 0:00:04.6]} 55... Ke7
{[%clk 0:00:04.4]} 56. Kg5 {[%clk 0:00:04.9]} 56... Rd3 {[%clk 0:00:04.7]} 57.
Kf4 {[%clk 0:00:05]} 57... Kf8 {[%clk 0:00:04.5]} 58. Ra7 {[%clk 0:00:05]} 58...
Kg7 {[%clk 0:00:05]} 59. Rb7 {[%clk 0:00:05]} 59... Rd4+ {[%clk 0:00:05.3]} 60.
Ke3 {[%clk 0:00:05]} 60... Ra4 {[%clk 0:00:05.9]} 61. Kf2 {[%clk 0:00:05.2]}
61... Ra2+ {[%clk 0:00:06]} 62. Ke3 {[%clk 0:00:05.1]} 62... Rg2 {[%clk
0:00:06.2]} 63. Kf4 {[%clk 0:00:04.7]} 63... Rg1 {[%clk 0:00:06.6]} 64. Rc7
{[%clk 0:00:04.4]} 64... Re1 {[%clk 0:00:07.1]} 65. Rb7 {[%clk 0:00:04.8]} 65...
Ra1 {[%clk 0:00:07.8]} 66. Rc7 {[%clk 0:00:05.1]} 66... Ra3 {[%clk 0:00:08.2]}
67. Rb7 {[%clk 0:00:05.1]} 67... Ra6 {[%clk 0:00:08.7]} 68. Rc7 {[%clk
0:00:05.4]} 68... Kf6 {[%clk 0:00:09.3]} 69. Rc5 {[%clk 0:00:04.7]} 69... Ra4+
{[%clk 0:00:09.5]} 70. Ke3 {[%clk 0:00:05]} 70... Ra3+ {[%clk 0:00:10.4]} 71.
Kf4 {[%clk 0:00:05.3]} 71... Rb3 {[%clk 0:00:11.1]} 72. Rc6+ {[%clk 0:00:05.4]}
72... Kg7 {[%clk 0:00:11.8]} 73. Ra6 {[%clk 0:00:06.2]} 73... Rb4+ {[%clk
0:00:12.3]} 74. Ke3 {[%clk 0:00:06.2]} 74... Rb7 {[%clk 0:00:13]} 75. Rc6 {[%clk
0:00:05.9]} 75... Re7+ {[%clk 0:00:13.2]} 76. Kf4 {[%clk 0:00:06]} 76... Re8
{[%clk 0:00:13]} 77. Rb6 {[%clk 0:00:06]} 77... Re1 {[%clk 0:00:12.1]} 78. Rb7
{[%clk 0:00:06]} 78... Re6 {[%clk 0:00:12]} 79. Rc7 {[%clk 0:00:05.8]} 79... Kf6
{[%clk 0:00:12.1]} 80. Ra7 {[%clk 0:00:04.3]} 80... Re7 {[%clk 0:00:12.6]} 81.
Ra6+ {[%clk 0:00:04.4]} 81... Kg7 {[%clk 0:00:12.6]} 82. Rb6 {[%clk 0:00:04.4]}
82... Ra7 {[%clk 0:00:12.5]} 83. Rc6 {[%clk 0:00:04.7]} 83... Ra4+ {[%clk
0:00:11.7]} 84. Ke3 {[%clk 0:00:04.8]} 84... Ra7 {[%clk 0:00:10.6]} 85. Kf4
{[%clk 0:00:05]} 85... Ra4+ {[%clk 0:00:10.8]} 86. Ke3 {[%clk 0:00:05.4]} 86...
f4+ {[%clk 0:00:11.7]} 87. gxf4 {[%clk 0:00:04.6]} 87... Ra5 {[%clk 0:00:11.8]}
88. Kf2 {[%clk 0:00:04.5]} 88... Ra1 {[%clk 0:00:10.3]} 89. Kg3 {[%clk
0:00:04.9]} 89... Ra5 {[%clk 0:00:10.2]} 90. Rd6 {[%clk 0:00:04.8]} 90... Rf5
{[%clk 0:00:10.1]} 91. Rd7 {[%clk 0:00:04.2]} 91... Kf6 {[%clk 0:00:10]} 92. Rd8
{[%clk 0:00:04.3]} 92... Ke6 {[%clk 0:00:10]} 93. Re8+ {[%clk 0:00:04.6]} 93...
Kf6 {[%clk 0:00:09.5]} 94. Re3 {[%clk 0:00:04.3]} 94... Rd5 {[%clk 0:00:09.9]}
95. Re1 {[%clk 0:00:04.3]} 95... Kf5 {[%clk 0:00:10.2]} 96. Re7 {[%clk
0:00:03.1]} 96... f6 {[%clk 0:00:10]} 97. Ra7 {[%clk 0:00:03.2]} 97... Rb5
{[%clk 0:00:10.1]} 98. Rc7 {[%clk 0:00:03.3]} 98... Ke6 {[%clk 0:00:09.2]} 99.
Ra7 {[%clk 0:00:02.9]} 99... Rb6 {[%clk 0:00:09.1]} 100. Ra5 {[%clk 0:00:03.2]}
100... Rd6 {[%clk 0:00:09.4]} 101. Rb5 {[%clk 0:00:03.2]} 101... Rd5 {[%clk
0:00:09.6]} 102. Rb6+ {[%clk 0:00:03.5]} 102... Kf5 {[%clk 0:00:10]} 103. Ra6
{[%clk 0:00:03.1]} 103... Rd1 {[%clk 0:00:10.5]} 104. Ra5+ {[%clk 0:00:03.5]}
104... Ke6 {[%clk 0:00:10.9]} 105. Ra6+ {[%clk 0:00:04.1]} 105... Rd6 {[%clk
0:00:11.2]} 106. Ra5 {[%clk 0:00:04.3]} 106... Rd5 {[%clk 0:00:10.1]} 107. Ra6+
{[%clk 0:00:04.8]} 107... Ke7 {[%clk 0:00:10.5]} 108. Rb6 {[%clk 0:00:04.8]}
108... Rd7 {[%clk 0:00:10.8]} 109. Ra6 {[%clk 0:00:04.3]} 109... Rb7 {[%clk
0:00:11.3]} 110. Rc6 {[%clk 0:00:04.5]} 110... Ra7 {[%clk 0:00:11.5]} 111. Rb6
{[%clk 0:00:04.7]} 111... Kf7 {[%clk 0:00:12.2]} 112. Rc6 {[%clk 0:00:05]}
112... Ra1 {[%clk 0:00:12.3]} 113. Rb6 {[%clk 0:00:05.1]} 113... Rg1+ {[%clk
0:00:12]} 114. Kf2 {[%clk 0:00:05.4]} 114... Rh1 {[%clk 0:00:12.6]} 115. Kg3
{[%clk 0:00:05.7]} 115... Rf1 {[%clk 0:00:12.4]} 116. Rb7+ {[%clk 0:00:05.1]}
116... Kg8 {[%clk 0:00:12.7]} 117. Rb8+ {[%clk 0:00:05.5]} 117... Kg7 {[%clk
0:00:13.2]} 118. Rb7+ {[%clk 0:00:06.4]} 118... Kh6 {[%clk 0:00:13.5]} 119. Rb6
{[%clk 0:00:06.7]} 119... f5 {[%clk 0:00:13.7]} 120. Rb7 {[%clk 0:00:05.7]}
120... Re1 {[%clk 0:00:13.5]} 121. Rc7 {[%clk 0:00:05.8]} 121... Re8 {[%clk
0:00:14]} 122. Rb7 {[%clk 0:00:05.9]} 122... Rg8 {[%clk 0:00:13.2]} 123. Rc7
{[%clk 0:00:05.9]} 123... Rg7 {[%clk 0:00:13.6]} 124. Rc6 {[%clk 0:00:05.6]}
124... Rd7 {[%clk 0:00:13.3]} 125. Re6 {[%clk 0:00:05.7]} 125... Kg7 {[%clk
0:00:13.6]} 126. Ra6 {[%clk 0:00:05.6]} 126... Kf7 {[%clk 0:00:14.1]} 127. Rb6
{[%clk 0:00:05.8]} 127... Re7 {[%clk 0:00:13.7]} 128. Ra6 {[%clk 0:00:06.1]}
128... Re6 {[%clk 0:00:14.3]} 129. Ra7+ {[%clk 0:00:06.5]} 129... Kf6 {[%clk
0:00:14.4]} 130. Rb7 {[%clk 0:00:07.1]} 130... Ra6 {[%clk 0:00:14.5]} 131. Rc7
{[%clk 0:00:07.3]} 131... Ke6 {[%clk 0:00:13.5]} 132. Rg7 {[%clk 0:00:06.9]}
132... Kd5 {[%clk 0:00:13.5]} 133. Rf7 {[%clk 0:00:06.6]} 133... Rd6 {[%clk
0:00:13.6]} 134. Rg7 {[%clk 0:00:06.8]} 134... Kd4 {[%clk 0:00:13.9]} 135. Re7
{[%clk 0:00:07]} 135... Kd3 {[%clk 0:00:13.4]} 136. Re8 {[%clk 0:00:07.4]}
136... Kd2 {[%clk 0:00:12.9]} 137. Re7 {[%clk 0:00:07.8]} 137... Kd1 {[%clk
0:00:12.6]} 138. Re8 {[%clk 0:00:08]} 138... Rd7 {[%clk 0:00:11.1]} 139. Re6
{[%clk 0:00:08]} 139... Rd2 {[%clk 0:00:08.3]} 140. Rxg6 {[%clk 0:00:06.8]}
140... Ke2 {[%clk 0:00:08.7]} 141. Re6+ {[%clk 0:00:06.7]} 141... Kf1 {[%clk
0:00:08.8]} 142. Re5 {[%clk 0:00:06.7]} 142... Rg2+ {[%clk 0:00:06.4]} 143. Kh3
{[%clk 0:00:07.1]} 143... Rf2 {[%clk 0:00:06.3]} 144. Kg3 {[%clk 0:00:05.9]}
144... Kg1 {[%clk 0:00:04.5]} 145. Rxf5 {[%clk 0:00:05.5]} 145... Rg2+ {[%clk
0:00:04.2]} 146. Kh3 {[%clk 0:00:05.8]} 146... Rh2+ {[%clk 0:00:03.7]} 147. Kg3
{[%clk 0:00:06.3]} 147... Rg2+ {[%clk 0:00:04.1]} 148. Kh3 {[%clk 0:00:06.8]}
148... Rh2+ {[%clk 0:00:02.3]} 149. Kg3 {[%clk 0:00:07.3]} 149... Rg2+ {[%clk
0:00:03.1]} 1/2-1/2

[Event "*** Titled Tuesday Blitz"]
[Site "Chess.com"]
[Date "2021.04.20"]
[Round "9"]
[White "Ze-Pequeno"]
[Black "Flopezin"]
[Result "1-0"]
[WhiteElo "2256"]
[BlackElo "2332"]
[TimeControl "180+1"]
[EndTime "11:40:06 PDT"]
[Termination "Ze-Pequeno won by resignation"]

1. e4 {[%clk 0:02:34.2]} 1... e5 {[%clk 0:02:59.7]} 2. Nf3 {[%clk 0:02:34]} 2...
Nc6 {[%clk 0:03:00.2]} 3. Nc3 {[%clk 0:02:32.7]} 3... Nf6 {[%clk 0:02:59.7]} 4.
d4 {[%clk 0:02:33.1]} 4... exd4 {[%clk 0:03:00.6]} 5. Nxd4 {[%clk 0:02:34]} 5...
Bb4 {[%clk 0:03:01.3]} 6. Nxc6 {[%clk 0:02:34.3]} 6... bxc6 {[%clk 0:03:02.2]}
7. Bd3 {[%clk 0:02:34.8]} 7... d5 {[%clk 0:03:02.6]} 8. exd5 {[%clk 0:02:35.7]}
8... O-O {[%clk 0:03:03.1]} 9. O-O {[%clk 0:02:35.6]} 9... Bg4 {[%clk
0:03:03.7]} 10. Be2 {[%clk 0:02:35.8]} 10... Bxe2 {[%clk 0:03:01.7]} 11. Nxe2
{[%clk 0:02:36.7]} 11... cxd5 {[%clk 0:03:01.2]} 12. Bg5 {[%clk 0:02:35.7]}
12... Be7 {[%clk 0:02:59.2]} 13. Nd4 {[%clk 0:02:32.5]} 13... Ne4 {[%clk
0:02:44.1]} 14. Nc6 {[%clk 0:02:29.1]} 14... Qd7 {[%clk 0:02:34.9]} 15. Nxe7+
{[%clk 0:02:22.8]} 15... Kh8 {[%clk 0:02:34.6]} 16. Bh4 {[%clk 0:02:12.5]} 16...
g5 {[%clk 0:02:32.6]} 17. Nxd5 {[%clk 0:01:59.3]} 17... gxh4 {[%clk 0:02:31.6]}
18. Qd4+ {[%clk 0:01:56.7]} 1-0

[Event "*** Titled Tuesday Blitz"]
[Site "Chess.com"]
[Date "2021.04.20"]
[Round "9"]
[White "Trickster_Pony"]
[Black "WPWPWP-2015"]
[Result "0-1"]
[WhiteElo "1621"]
[BlackElo "2459"]
[TimeControl "180+1"]
[EndTime "11:40:26 PDT"]
[Termination "WPWPWP-2015 won by resignation"]

1. c4 {[%clk 0:03:00.9]} 1... Nf6 {[%clk 0:02:54.2]} 2. g3 {[%clk 0:03:01]} 2...
c5 {[%clk 0:02:53.3]} 3. Bg2 {[%clk 0:03:00.8]} 3... g6 {[%clk 0:02:51.9]} 4.
Nc3 {[%clk 0:03:00]} 4... Bg7 {[%clk 0:02:51.7]} 5. e3 {[%clk 0:02:59.3]} 5...
O-O {[%clk 0:02:51.5]} 6. Nge2 {[%clk 0:02:59.2]} 6... Nc6 {[%clk 0:02:48]} 7.
O-O {[%clk 0:02:58.7]} 7... d6 {[%clk 0:02:44.8]} 8. d4 {[%clk 0:02:52.9]} 8...
cxd4 {[%clk 0:02:37.8]} 9. exd4 {[%clk 0:02:53.8]} 9... Bf5 {[%clk 0:02:36.8]}
10. h3 {[%clk 0:02:49.3]} 10... h5 {[%clk 0:02:35.6]} 11. a3 {[%clk 0:02:43.9]}
11... Qd7 {[%clk 0:02:31.6]} 12. b4 {[%clk 0:02:42.5]} 12... Bxh3 {[%clk
0:02:29.6]} 13. b5 {[%clk 0:02:38.7]} 13... Bxg2 {[%clk 0:02:27.8]} 14. Kxg2
{[%clk 0:02:39.4]} 14... Na5 {[%clk 0:02:25.4]} 15. Qa4 {[%clk 0:02:34.2]} 15...
b6 {[%clk 0:02:25]} 16. Rd1 {[%clk 0:02:27.5]} 16... Qb7+ {[%clk 0:02:12.3]} 17.
Kh2 {[%clk 0:02:25.3]} 17... Rac8 {[%clk 0:02:09]} 18. c5 {[%clk 0:02:22.4]}
18... Ng4+ {[%clk 0:02:07.6]} 19. Kg1 {[%clk 0:02:20.2]} 19... Qf3 {[%clk
0:02:06.6]} 20. Rf1 {[%clk 0:02:06.9]} 20... dxc5 {[%clk 0:02:00.3]} 21. dxc5
{[%clk 0:02:05.2]} 21... Bxc3 {[%clk 0:01:56.9]} 0-1

[Event "*** Titled Tuesday Blitz"]
[Site "Chess.com"]
[Date "2021.04.20"]
[Round "9"]
[White "FMalexhdez"]
[Black "mr65"]
[Result "1-0"]
[WhiteElo "2230"]
[BlackElo "2126"]
[TimeControl "180+1"]
[EndTime "11:40:49 PDT"]
[Termination "FMalexhdez won by resignation"]

1. e4 {[%clk 0:03:00.9]} 1... e5 {[%clk 0:02:59.7]} 2. Nf3 {[%clk 0:03:00.6]}
2... Nc6 {[%clk 0:02:59.8]} 3. Bc4 {[%clk 0:03:01]} 3... Nf6 {[%clk 0:02:59.1]}
4. d3 {[%clk 0:02:58.7]} 4... Bc5 {[%clk 0:02:58.2]} 5. O-O {[%clk 0:02:57.9]}
5... h6 {[%clk 0:02:57.7]} 6. c3 {[%clk 0:02:58.3]} 6... O-O {[%clk 0:02:57.2]}
7. d4 {[%clk 0:02:55.9]} 7... exd4 {[%clk 0:02:51.3]} 8. cxd4 {[%clk 0:02:53.7]}
8... Bb6 {[%clk 0:02:48.7]} 9. e5 {[%clk 0:02:52.5]} 9... d5 {[%clk 0:02:45.1]}
10. exf6 {[%clk 0:02:41.4]} 10... dxc4 {[%clk 0:02:43.9]} 11. fxg7 {[%clk
0:02:42]} 11... Kxg7 {[%clk 0:02:42.3]} 12. d5 {[%clk 0:02:38]} 12... Nb4 {[%clk
0:02:31.9]} 13. Nc3 {[%clk 0:02:26.8]} 13... Nd3 {[%clk 0:02:18.7]} 14. Qd2
{[%clk 0:02:15.8]} 14... Nxc1 {[%clk 0:02:14.7]} 15. Raxc1 {[%clk 0:02:16.2]}
15... Qf6 {[%clk 0:02:03.2]} 16. Ne4 {[%clk 0:02:10.5]} 16... Qg6 {[%clk
0:02:02.7]} 17. Rxc4 {[%clk 0:02:06.7]} 17... Bf5 {[%clk 0:01:54.6]} 18. Qc3+
{[%clk 0:02:00.6]} 18... f6 {[%clk 0:01:50.5]} 19. Nh4 {[%clk 0:01:53.8]} 19...
Qh5 {[%clk 0:01:49.3]} 20. Ng3 {[%clk 0:01:47.9]} 1-0